bitfinex/quotes_BTCUSD_20250102
["timestamp","ask_amount","ask_price","bid_price","bid_amount"]
[1735825748553,0.00199606,96641.0,96640.0,1.2484804]
[1735825748796,0.00199606,96641.0,96640.0,1.43455698]
[1735825749776,0.00199606,96641.0,96640.0,1.2484804]
[1735825750824,0.083,96664.0,96663.0,0.206904]
[1735825751193,0.0454,96670.0,96669.0,0.74689494]
[1735825751403,0.079671,96671.0,96669.0,0.85088126]
[1735825751580,0.079671,96671.0,96670.0,0.10398632]
[1735825752107,0.07981939,96671.0,96670.0,0.10722668]
[1735825752229,0.07981939,96671.0,96670.0,0.16188811]
[1735825753315,0.07981939,96671.0,96670.0,0.16988811]
[1735825754057,0.07981939,96671.0,96670.0,0.17288811]
[1735825754910,0.07981939,96671.0,96670.0,0.71289205]
[1735825755678,0.00031939,96671.0,96670.0,0.71289205]
[1735825756322,0.00031939,96671.0,96670.0,0.65823062]
[1735825756756,0.00031939,96671.0,96670.0,0.75145972]
[1735825757796,0.00031939,96671.0,96670.0,0.76225379]
[1735825758080,0.00031939,96671.0,96670.0,0.66902469]
[1735825759901,0.08031939,96671.0,96670.0,0.66902469]
[1735825760128,0.08031939,96671.0,96670.0,0.77301101]
[1735825760342,0.08031939,96671.0,96670.0,0.5542443]
[1735825760553,0.13178386,96671.0,96670.0,0.5542443]
[1735825760967,0.13178386,96671.0,96670.0,0.01424036]
[1735825761196,0.13178386,96671.0,96670.0,0.011]
[1735825763110,0.12641939,96671.0,96670.0,0.011]
[1735825763547,0.12641939,96671.0,96670.0,0.03483385]
[1735825764051,0.12641939,96671.0,96670.0,0.13882017]
[1735825764266,0.00031939,96671.0,96670.0,0.6820641]
[1735825765127,0.00031939,96671.0,96670.0,0.8320641]
[1735825766233,0.00031939,96671.0,96670.0,0.8240641]
[1735825766438,0.00031939,96671.0,96670.0,0.8330641]
[1735825766642,0.00031939,96671.0,96670.0,0.98869622]
[1735825766847,0.00131939,96671.0,96670.0,0.99469622]
[1735825767081,0.00131939,96671.0,96670.0,1.33834092]
[1735825767558,0.00031939,96671.0,96670.0,1.33234092]
[1735825768035,0.000171,96676.0,96675.0,0.356878]
[1735825768264,0.00022043,96676.0,96675.0,0.66735064]
[1735825768486,4.3e-07,96676.0,96675.0,0.67059063]
[1735825768893,0.0798,96703.0,96690.0,0.206846]
[1735825769031,0.00022044,96691.0,96690.0,0.31083232]
[1735825769257,0.00022044,96691.0,96690.0,0.31407231]
[1735825769461,0.00022044,96691.0,96690.0,0.36319645]
[1735825770764,0.00122044,96691.0,96690.0,0.36919645]
[1735825772116,0.00122044,96691.0,96690.0,0.37819645]
[1735825773040,0.00122044,96691.0,96690.0,0.91819996]
[1735825773590,0.00036056,96691.0,96690.0,0.91819996]
[1735825774902,0.00036056,96691.0,96690.0,0.39915994]
[1735825775108,0.00036056,96691.0,96690.0,0.94115994]
[1735825775311,0.0798,96703.0,96702.0,0.542]
[1735825775504,0.0798,96703.0,96702.0,0.72086852]
[1735825776157,0.0798,96703.0,96702.0,0.17886852]
[1735825776387,0.0798,96703.0,96702.0,0.10398632]
[1735825776621,0.0798,96703.0,96702.0,0.11698632]
[1735825777269,0.0798,96703.0,96702.0,0.11298632]
[1735825777721,0.0798,96703.0,96702.0,0.10798632]
[1735825778195,0.0798,96703.0,96702.0,0.11698632]
[1735825778399,0.0798,96703.0,96702.0,0.16105095]
[1735825778771,0.0798,96703.0,96702.0,0.15705095]
[1735825779276,0.0798,96703.0,96702.0,0.17005095]
[1735825779832,0.0798,96703.0,96702.0,0.16605095]
[1735825780083,0.0798,96703.0,96702.0,0.17005095]
[1735825780546,0.0798,96703.0,96702.0,0.16605095]
[1735825780796,0.0798,96703.0,96702.0,0.16205095]
[1735825781227,0.0798,96703.0,96702.0,0.17105095]
[1735825785106,0.0798,96703.0,96702.0,0.71305095]
[1735825785341,0.079971,96703.0,96702.0,0.71305095]
[1735825786406,0.000171,96703.0,96702.0,0.71305095]
[1735825787900,0.000171,96703.0,96702.0,0.72360373]
[1735825793136,0.000171,96703.0,96702.0,0.72684256]
[1735825796433,0.000171,96703.0,96702.0,0.18484256]
[1735825796680,0.000171,96703.0,96702.0,0.72684256]
[1735825798298,0.000171,96703.0,96702.0,0.18484256]
[1735825800515,0.075971,96703.0,96702.0,0.18484256]
[1735825802884,0.075971,96703.0,96702.0,0.72684256]
[1735825803843,0.000171,96703.0,96702.0,0.72684256]
[1735825804085,8.255e-05,96703.0,96702.0,0.72684256]
[1735825804555,0.12258255,96703.0,96702.0,0.72684256]
[1735825804807,0.12258255,96703.0,96702.0,0.55923883]
[1735825805059,0.12258255,96703.0,96702.0,0.01723883]
[1735825805538,0.12258255,96703.0,96702.0,0.014]
[1735825806747,0.12258255,96703.0,96702.0,0.009]
[1735825806978,0.12258255,96703.0,96695.0,0.206835]
[1735825807207,0.12258255,96703.0,96702.0,0.012]
[1735825807466,0.12258255,96703.0,96702.0,0.003]
[1735825807678,0.12258255,96703.0,96697.0,0.206831]
[1735825807945,0.12258255,96703.0,96702.0,0.012]
[1735825808188,0.12258255,96703.0,96702.0,0.11598632]
[1735825808416,8.255e-05,96703.0,96702.0,0.71589146]
[1735825808670,8.255e-05,96703.0,96702.0,0.71289146]
[1735825808932,8.255e-05,96703.0,96702.0,0.71613016]
[1735825809422,8.255e-05,96703.0,96702.0,0.70713016]
[1735825810479,8.255e-05,96703.0,96702.0,0.71613016]
[1735825811261,8.255e-05,96703.0,96702.0,0.87113016]
[1735825811488,8.255e-05,96703.0,96702.0,1.02693016]
[1735825811713,8.255e-05,96703.0,96702.0,1.3674212]
[1735825812458,8.255e-05,96703.0,96702.0,1.3584212]
[1735825812701,8.255e-05,96703.0,96702.0,1.36165927]
[1735825812953,8.255e-05,96703.0,96702.0,1.36565927]
[1735825813463,8.255e-05,96703.0,96702.0,1.37465927]
[1735825814214,0.0821,96735.0,96732.0,0.206756]
[1735825814461,0.08259478,96735.0,96733.0,0.0413519]
[1735825815398,0.08259478,96735.0,96734.0,0.31073832]
[1735825816383,0.08259478,96735.0,96734.0,0.31973832]
[1735825816884,0.00049478,96735.0,96734.0,0.86173832]
[1735825817357,0.00049478,96735.0,96734.0,0.85473832]
[1735825817633,0.00049478,96735.0,96734.0,1.19632464]
[1735825817859,0.000171,96738.0,96736.0,0.356748]
[1735825818103,0.000171,96738.0,96737.0,0.25398632]
[1735825818104,0.00031928,96738.0,96737.0,0.25398632]
[1735825818357,0.00031928,96738.0,96737.0,0.79598632]
[1735825819076,0.00031928,96738.0,96737.0,0.25722319]
[1735825819315,0.00031928,96738.0,96737.0,0.33491046]
[1735825819562,0.00031928,96738.0,96737.0,0.91044088]
[1735825819800,0.00031928,96738.0,96737.0,0.91944088]
[1735825820271,0.07509051,96759.0,96758.0,0.748701]
[1735825820504,0.07509051,96759.0,96758.0,0.91059246]
[1735825822661,0.07509051,96759.0,96758.0,0.60190514]
[1735825823360,0.07509051,96759.0,96758.0,0.60990514]
[1735825823906,0.07509051,96759.0,96758.0,0.06790514]
[1735825832305,0.07509051,96759.0,96758.0,0.17189146]
[1735825832547,0.000171,96768.0,96767.0,0.206682]
[1735825832751,0.00031923,96768.0,96767.0,0.2480187]
[1735825832909,0.00490519,96768.0,96767.0,0.2480187]
[1735825833142,0.00031923,96768.0,96767.0,0.2480187]
[1735825833989,0.00031923,96768.0,96767.0,0.2510187]
[1735825835008,0.00031923,96768.0,96767.0,0.35500502]
[1735825835211,0.00031923,96768.0,96767.0,0.35600502]
[1735825835921,0.00031923,96768.0,96767.0,0.35300502]
[1735825836224,0.00031923,96768.0,96767.0,0.35800502]
[1735825836476,0.00031923,96768.0,96767.0,0.35700502]
[1735825836788,0.00031923,96768.0,96767.0,0.36600502]
[1735825838855,0.00031923,96768.0,96767.0,0.90800502]
[1735825839075,0.12661923,96768.0,96767.0,0.556]
[1735825839293,0.22661923,96768.0,96767.0,0.556]
[1735825839508,0.23292172,96768.0,96767.0,0.556]
[1735825839777,0.23292172,96768.0,96767.0,0.551]
[1735825840009,0.23292172,96768.0,96767.0,0.542]
[1735825840220,0.1,96757.0,96749.0,0.02421689]
[1735825840557,0.1246,96750.0,96740.0,0.09270326]
[1735825840699,0.206737,96741.0,96734.0,0.542]
[1735825840947,0.0764,96740.0,96739.0,0.02119111]
[1735825841362,0.08268177,96740.0,96739.0,0.02119111]
[1735825842259,0.28942077,96740.0,96739.0,0.02119111]
[1735825842881,0.08268177,96740.0,96739.0,0.02319111]
[1735825843090,0.08268177,96740.0,96739.0,0.03219111]
[1735825843292,0.28942077,96740.0,96739.0,0.03219111]
[1735825843519,0.08268177,96740.0,96739.0,0.03219111]
[1735825844275,0.08268177,96740.0,96739.0,0.03227651]
[1735825844640,0.08268177,96740.0,96739.0,0.0110854]
[1735825846599,0.18268177,96740.0,96739.0,0.0110854]
[1735825851384,0.08268177,96740.0,96739.0,0.0110854]
[1735825851814,0.08268177,96740.0,96739.0,0.03492813]
[1735825853508,0.0764,96740.0,96739.0,0.03492813]
[1735825853687,0.08271008,96740.0,96739.0,0.03492813]
[1735825854065,0.08271008,96740.0,96739.0,0.0110854]
[1735825854631,0.000171,96775.0,96739.0,0.0110854]
[1735825854632,0.0829,96758.0,96749.0,0.206719]
[1735825854856,0.1,96755.0,96740.0,0.11100689]
[1735825855056,0.1,96755.0,96745.0,0.206728]
[1735825855263,0.00631324,96754.0,96745.0,0.206728]
[1735825855466,0.00631324,96754.0,96746.0,0.05285367]
[1735825856343,0.00631324,96754.0,96747.0,0.206724]
[1735825856546,0.00631324,96754.0,96747.0,0.64598632]
[1735825856758,0.0829,96758.0,96752.0,0.206713]
[1735825856988,0.0839,96758.0,96752.0,0.206713]
[1735825857201,0.00631324,96757.0,96752.0,0.31069932]
[1735825857617,0.001,96754.0,96752.0,0.31069932]
[1735825858177,0.0829,96758.0,96752.0,0.31069932]
[1735825858378,0.00631324,96757.0,96752.0,0.31069932]
[1735825858589,0.0829,96758.0,96752.0,0.31169932]
[1735825858805,0.00631324,96757.0,96752.0,0.31169932]
[1735825859183,0.0829,96758.0,96752.0,0.207713]
[1735825859417,0.1,96757.0,96752.0,0.001]
[1735825859677,0.10631324,96757.0,96752.0,0.008]
[1735825859868,0.00631324,96757.0,96752.0,0.007]
[1735825860086,0.10631324,96757.0,96752.0,0.008]
[1735825860288,0.31301624,96757.0,96752.0,0.008]
[1735825860504,0.31301624,96757.0,96752.0,0.04338214]
[1735825860687,0.31301624,96757.0,96752.0,0.007]
[1735825860904,0.31301624,96757.0,96752.0,0.008]
[1735825861321,0.00631324,96757.0,96752.0,0.008]
[1735825861758,0.10631324,96757.0,96752.0,0.008]
[1735825861967,0.00631324,96757.0,96752.0,0.008]
[1735825862171,0.10631324,96757.0,96752.0,0.008]
[1735825862393,0.00631324,96757.0,96753.0,0.05703387]
[1735825862617,0.00631324,96757.0,96752.0,0.008]
[1735825862808,0.0001708,96759.0,96752.0,0.008]
[1735825863050,0.00634174,96758.0,96752.0,0.008]
[1735825863272,0.00634174,96758.0,96752.0,0.007]
[1735825863456,0.00634174,96758.0,96749.0,0.542]
[1735825863677,0.00634174,96758.0,96753.0,0.008]
[1735825863888,0.00634174,96758.0,96754.0,0.51740432]
[1735825864098,0.0001708,96759.0,96758.0,0.206701]
[1735825864546,0.0001708,96759.0,96758.0,0.31068732]
[1735825864956,0.0001708,96759.0,96758.0,0.85268732]
[1735825865174,0.0001708,96759.0,96758.0,0.95667364]
[1735825865388,0.0001708,96759.0,96758.0,0.95991038]
[1735825866035,0.0001708,96759.0,96758.0,0.96591038]
[1735825866882,0.0001708,96759.0,96758.0,0.95991038]
[1735825867035,0.0001708,96759.0,96758.0,0.96891038]
[1735825867251,0.0001708,96759.0,96758.0,0.97291038]
[1735825868379,0.0001708,96759.0,96758.0,0.96391038]
[1735825868577,0.0001708,96759.0,96758.0,0.85992406]
[1735825868788,0.0001708,96759.0,96758.0,0.86892406]
[1735825869314,0.0001708,96759.0,96758.0,0.86492406]
[1735825869519,0.0001708,96759.0,96758.0,0.86992406]
[1735825877641,0.0477708,96759.0,96758.0,0.55923674]
[1735825877877,0.44104945,96759.0,96758.0,0.01723674]
[1735825878134,0.44104945,96759.0,96758.0,0.014]
[1735825878654,0.44104945,96759.0,96758.0,0.005]
[1735825878888,0.206708,96755.0,96748.0,0.02033866]
[1735825879367,0.00630202,96754.0,96748.0,0.02033866]
[1735825880202,0.00630202,96754.0,96749.0,0.04263679]
[1735825880446,0.00630202,96754.0,96750.0,0.51742132]
[1735825880943,0.0803708,96759.0,96756.0,0.206705]
[1735825882616,0.0803708,96759.0,96756.0,0.207705]
[1735825883129,0.0803708,96759.0,96756.0,0.206705]
[1735825883377,0.0803708,96759.0,96757.0,0.05174003]
[1735825883838,0.0803708,96759.0,96758.0,0.206701]
[1735825884298,0.0803708,96759.0,96756.0,0.207705]
[1735825884756,0.0001708,96759.0,96756.0,0.41341]
[1735825884981,0.0001708,96759.0,96757.0,0.001]
[1735825885205,0.0001708,96759.0,96758.0,0.2274715]
[1735825885429,0.0001708,96759.0,96758.0,0.206701]
[1735825885910,0.0001708,96759.0,96756.0,0.207705]
[1735825886175,0.0001708,96759.0,96757.0,0.007]
[1735825886587,0.00629141,96758.0,96756.0,0.206705]
[1735825886802,0.0001708,96759.0,96756.0,0.206705]
[1735825887010,0.00629141,96758.0,96757.0,0.01647128]
[1735825887219,0.00629141,96758.0,96756.0,0.206705]
[1735825887220,0.0001708,96759.0,96756.0,0.206705]
[1735825887432,0.00628516,96758.0,96757.0,0.007]
[1735825887635,0.0001708,96759.0,96756.0,0.206705]
[1735825887852,0.00628641,96758.0,96756.0,0.206705]
[1735825888085,0.00628641,96758.0,96756.0,0.213705]
[1735825888341,0.0001708,96759.0,96756.0,0.007]
[1735825888730,0.00628641,96758.0,96756.0,0.007]
[1735825888929,0.00628641,96758.0,96757.0,0.001]
[1735825889315,0.00628641,96758.0,96753.0,0.20671]
[1735825889516,0.00628641,96758.0,96757.0,0.008]
[1735825889946,0.31298741,96758.0,96757.0,0.008]
[1735825890182,0.383501,96758.0,96757.0,0.008]
[1735825890499,0.38979865,96758.0,96757.0,0.008]
[1735825892083,0.38979865,96758.0,96757.0,0.01]
[1735825892333,0.08309765,96758.0,96757.0,0.01]
[1735825894359,0.08309765,96758.0,96757.0,0.0316717]
[1735825895728,0.08309765,96758.0,96757.0,0.01]
[1735825897344,0.08304353,96758.0,96757.0,0.01]
[1735825898441,0.28974453,96758.0,96757.0,0.01]
[1735825898885,0.38974453,96758.0,96757.0,0.01]
[1735825903818,0.38991533,96758.0,96757.0,0.01]
[1735825904645,0.48991533,96758.0,96757.0,0.01]
[1735825915936,0.38991533,96758.0,96757.0,0.01]
[1735825916157,0.48991533,96758.0,96757.0,0.01]
[1735825916792,0.48991533,96758.0,96757.0,0.0100854]
[1735825917671,0.08321433,96758.0,96757.0,0.0100854]
[1735825917882,0.18321433,96758.0,96757.0,0.0100854]
[1735825919285,0.18321433,96758.0,96757.0,0.03176554]
[1735825920561,0.00646845,96758.0,96757.0,0.03176554]
[1735825921112,0.0001708,96758.0,96757.0,0.03176554]
[1735825925081,0.0001708,96758.0,96757.0,0.0100854]
[1735825925921,0.0001708,96758.0,96757.0,0.2167884]
[1735825928799,0.0001708,96758.0,96757.0,0.0100854]
[1735825931222,0.0063747,96758.0,96757.0,0.0100854]
[1735825932106,0.1063747,96758.0,96757.0,0.0100854]
[1735825932316,0.59076904,96758.0,96757.0,0.0100854]
[1735825932528,0.59076904,96758.0,96746.0,0.09270326]
[1735825932529,0.680618,96750.0,96746.0,0.09270326]
[1735825932768,0.78460432,96750.0,96746.0,0.09270326]
[1735825932967,0.373,96747.0,96746.0,0.09270326]
[1735825933181,0.57788632,96747.0,96746.0,0.09270326]
[1735825933399,0.60605538,96747.0,96746.0,0.09270326]
[1735825933620,0.539239,96740.0,96739.0,8.54e-05]
[1735825933829,0.64322532,96740.0,96739.0,8.54e-05]
[1735825934055,0.64341941,96740.0,96739.0,8.54e-05]
[1735825934233,0.65748246,96740.0,96739.0,8.54e-05]
[1735825934693,0.97399265,96740.0,96739.0,8.54e-05]
[1735825934899,0.96741602,96740.0,96739.0,8.54e-05]
[1735825935519,0.96741602,96740.0,96739.0,0.0010854]
[1735825935748,0.7134297,96740.0,96739.0,0.0010854]
[1735825935960,0.8134297,96740.0,96739.0,0.0010854]
[1735825936404,0.8134297,96740.0,96739.0,8.54e-05]
[1735825936622,0.8174297,96740.0,96739.0,8.54e-05]
[1735825937044,0.8164297,96740.0,96739.0,8.54e-05]
[1735825937255,0.8184297,96740.0,96739.0,8.54e-05]
[1735825937472,0.75590583,96740.0,96739.0,8.54e-05]
[1735825937673,0.77034715,96740.0,96739.0,8.54e-05]
[1735825937909,0.76834715,96740.0,96739.0,8.54e-05]
[1735825938122,0.76934715,96740.0,96739.0,8.54e-05]
[1735825938364,0.95131804,96740.0,96739.0,8.54e-05]
[1735825938778,0.95331804,96740.0,96739.0,8.54e-05]
[1735825939198,1.08228307,96740.0,96739.0,8.54e-05]
[1735825939440,1.08528307,96740.0,96739.0,8.54e-05]
[1735825939860,1.08128307,96740.0,96739.0,8.54e-05]
[1735825940077,1.08928307,96740.0,96739.0,0.0010854]
[1735825940228,1.09028307,96740.0,96739.0,8.54e-05]
[1735825940649,1.08928307,96740.0,96739.0,8.54e-05]
[1735825941214,1.09128307,96740.0,96739.0,8.54e-05]
[1735825941735,1.01785065,96740.0,96739.0,8.54e-05]
[1735825941941,0.91386433,96740.0,96739.0,8.54e-05]
[1735825942161,0.91686433,96740.0,96739.0,8.54e-05]
[1735825943003,0.77834715,96740.0,96739.0,8.54e-05]
[1735825943493,0.77577013,96740.0,96739.0,8.54e-05]
[1735825945181,0.86805902,96740.0,96739.0,8.54e-05]
[1735825946623,0.77577013,96740.0,96739.0,8.54e-05]
[1735825947723,0.77597785,96740.0,96739.0,8.54e-05]
[1735825948351,0.76167775,96740.0,96739.0,8.54e-05]
[1735825950238,0.77604245,96740.0,96739.0,8.54e-05]
[1735825953964,0.88002877,96740.0,96739.0,8.54e-05]
[1735825954394,0.77604245,96740.0,96739.0,8.54e-05]
[1735825954949,0.77404245,96740.0,96739.0,8.54e-05]
[1735825955155,0.77604245,96740.0,96739.0,8.54e-05]
[1735825955755,0.76504245,96740.0,96739.0,8.54e-05]
[1735825956195,0.76804245,96740.0,96739.0,8.54e-05]
[1735825956816,0.75367775,96740.0,96739.0,8.54e-05]
[1735825964234,0.75332881,96740.0,96739.0,8.54e-05]
[1735825964609,0.64934249,96740.0,96739.0,8.54e-05]
[1735825964815,0.75332881,96740.0,96739.0,8.54e-05]
[1735825967373,0.76040912,96740.0,96739.0,8.54e-05]
[1735825967577,0.753421,96740.0,96739.0,8.54e-05]
[1735825967991,0.84570989,96740.0,96739.0,8.54e-05]
[1735825968191,0.94969621,96740.0,96739.0,8.54e-05]
[1735825968393,0.84570989,96740.0,96739.0,8.54e-05]
[1735825969015,0.753421,96740.0,96739.0,8.54e-05]
[1735825971176,0.805552,96734.0,96733.0,8e-07]
[1735825971373,1.00953832,96734.0,96733.0,8e-07]
[1735825971582,1.02997942,96734.0,96733.0,8e-07]
[1735825972179,1.13396574,96734.0,96733.0,8e-07]
[1735825972440,1.13896574,96734.0,96733.0,8e-07]
[1735825972659,1.14796574,96734.0,96733.0,8e-07]
[1735825973025,1.89988439,96734.0,96733.0,8e-07]
[1735825973385,0.18317892,96699.0,96698.0,0.02115345]
[1735825973592,0.54000592,96699.0,96698.0,0.02164823]
[1735825973771,0.54604257,96699.0,96698.0,0.02164823]
[1735825973903,0.54604257,96699.0,96698.0,0.00049478]
[1735825974968,0.54604257,96699.0,96698.0,0.00249478]
[1735825975175,0.54704257,96699.0,96698.0,0.00949478]
[1735825977081,0.21386365,96699.0,96698.0,0.00949478]
[1735825977286,0.00703665,96699.0,96698.0,0.08679478]
[1735825977510,0.00703665,96699.0,96698.0,0.14178281]
[1735825977969,0.00703665,96699.0,96698.0,0.24576913]
[1735825978171,0.00703665,96699.0,96698.0,0.78776913]
[1735825978373,0.001,96699.0,96698.0,0.81076913]
[1735825979180,0.001,96699.0,96698.0,0.80876913]
[1735825979383,0.23075649,96719.0,96698.0,0.80876913]
[1735825979384,0.09230259,96728.0,96700.0,0.542]
[1735825979624,0.09230259,96728.0,96701.0,0.27769804]
[1735825979825,0.09230259,96728.0,96706.0,0.206811]
[1735825979826,0.20678,96721.0,96706.0,0.206811]
[1735825980165,0.00688596,96720.0,96707.0,0.10398632]
[1735825980715,0.00688596,96720.0,96709.0,0.0785]
[1735825980992,0.28995492,96723.0,96710.0,0.10398632]
[1735825981095,0.00691014,96719.0,96711.0,0.03892973]
[1735825981302,0.49673092,96723.0,96712.0,0.10398632]
[1735825981505,0.20678,96721.0,96712.0,0.10398632]
[1735825981906,0.00690845,96720.0,96712.0,0.10398632]
[1735825982607,0.00690845,96720.0,96712.0,0.64698632]
[1735825982813,0.00690845,96720.0,96717.0,0.206788]
[1735825983018,0.00690845,96720.0,96718.0,0.18148632]
[1735825983223,0.09230259,96729.0,96718.0,0.18148632]
[1735825983642,0.00692825,96728.0,96718.0,0.18148632]
[1735825984753,0.20676,96731.0,96718.0,0.18148632]
[1735825984983,0.20676,96731.0,96720.0,0.542]
[1735825985191,0.20676,96731.0,96721.0,0.10398632]
[1735825985192,0.00693026,96730.0,96721.0,0.10398632]
[1735825985567,0.20676,96731.0,96721.0,0.10398632]
[1735825985773,0.29904659,96738.0,96721.0,0.10398632]
[1735825985983,0.29904659,96738.0,96722.0,0.206778]
[1735825986191,0.0069379,96737.0,96723.0,0.14487819]
[1735825986394,0.206748,96736.0,96723.0,0.14487819]
[1735825986846,0.00694415,96735.0,96723.0,0.14487819]
[1735825987269,0.00694415,96735.0,96724.0,0.206773]
[1735825987452,0.00694415,96735.0,96725.0,0.10398632]
[1735825987702,0.09230259,96740.0,96726.0,0.03892973]
[1735825987917,0.09230259,96740.0,96727.0,0.18208632]
[1735825988117,0.00694778,96739.0,96733.0,0.0498]
[1735825988323,0.09230259,96741.0,96734.0,0.31073832]
[1735825988528,0.00695422,96740.0,96736.0,0.206748]
[1735825988738,0.00695422,96740.0,96735.0,0.17582271]
[1735825988739,0.00695422,96740.0,96738.0,0.02046978]
[1735825989005,0.00795422,96740.0,96739.0,0.64598632]
[1735825990167,0.001,96740.0,96739.0,0.64598632]
[1735825990754,0.2068918,96749.0,96739.0,0.64598632]
[1735825990947,0.2068918,96749.0,96740.0,0.08920788]
[1735825991107,0.00697538,96748.0,96740.0,0.1931942]
[1735825991319,0.206724,96747.0,96740.0,0.1931942]
[1735825991749,0.00697538,96746.0,96740.0,0.1931942]
[1735825991950,0.206729,96745.0,96740.0,0.1931942]
[1735825992635,0.413466,96743.0,96740.0,0.002]
[1735825992958,0.413466,96743.0,96740.0,0.008]
[1735825993155,0.206737,96741.0,96740.0,0.002]
[1735825993363,0.306737,96741.0,96740.0,0.002]
[1735825993565,0.31374934,96741.0,96740.0,0.008]
[1735825993843,0.31374934,96741.0,96739.0,0.542]
[1735825994219,0.21374934,96741.0,96740.0,0.0632]
[1735825994691,0.21374934,96741.0,96740.0,0.007]
[1735825995546,0.1,96740.0,96739.0,0.001]
[1735825995746,0.1,96740.0,96726.0,0.02075554]
[1735825995889,0.10700751,96740.0,96726.0,0.12489014]
[1735825996093,0.413487,96738.0,96726.0,0.12489014]
[1735825996340,0.00700595,96737.0,96726.0,0.12489014]
[1735825996530,0.206748,96736.0,96726.0,0.12489014]
[1735825996939,0.00700595,96735.0,96726.0,0.12489014]
[1735825997111,0.00700595,96735.0,96726.0,0.13089014]
[1735825997548,0.00700595,96735.0,96726.0,0.12489014]
[1735825997932,0.00700595,96735.0,96727.0,0.05030739]
[1735825999141,0.00700595,96735.0,96727.0,0.05330739]
[1735825999587,0.00700595,96735.0,96727.0,0.06230739]
[1735825999798,0.22948632,96734.0,96724.0,0.542]
[1735826000010,0.68880392,96700.0,96699.0,5e-07]
[1735826000255,0.79279024,96700.0,96699.0,5e-07]
[1735826000457,0.54998985,96700.0,96699.0,5e-07]
[1735826000896,0.44600353,96700.0,96699.0,5e-07]
[1735826001095,0.59600353,96700.0,96699.0,5e-07]
[1735826001309,0.69998985,96700.0,96699.0,0.00049528]
[1735826001911,0.70098985,96700.0,96699.0,0.00049528]
[1735826002271,0.70098985,96700.0,96699.0,0.00249528]
[1735826002625,0.70098985,96700.0,96699.0,0.00049528]
[1735826002828,0.70998985,96700.0,96699.0,0.00149528]
[1735826002995,0.70998985,96700.0,96699.0,0.00049528]
[1735826003378,0.206874,96677.0,96668.0,0.01655653]
[1735826003651,0.206874,96677.0,96676.0,4.944e-05]
[1735826004006,0.306874,96677.0,96676.0,4.944e-05]
[1735826004409,0.72493924,96677.0,96676.0,4.944e-05]
[1735826004619,0.73428179,96677.0,96676.0,4.944e-05]
[1735826005171,0.73428179,96677.0,96676.0,4.4e-07]
[1735826005172,0.98238179,96677.0,96676.0,4.4e-07]
[1735826005401,1.12446644,96677.0,96676.0,4.4e-07]
[1735826005610,1.12446644,96677.0,96660.0,8.54e-05]
[1735826005611,0.39008692,96661.0,96660.0,8.54e-05]
[1735826005785,0.64407324,96661.0,96660.0,0.00013483]
[1735826005992,0.74691412,96661.0,96660.0,0.00013483]
[1735826007438,0.75389207,96661.0,96660.0,0.00013483]
[1735826007900,0.75433973,96661.0,96660.0,0.00013483]
[1735826008241,0.76533973,96661.0,96660.0,0.00013483]
[1735826008441,0.75833973,96661.0,96660.0,0.00013483]
[1735826008657,0.75433973,96661.0,96660.0,0.00013483]
[1735826008873,0.76653785,96661.0,96660.0,0.00013483]
[1735826009611,0.75853785,96661.0,96660.0,0.00013483]
[1735826010040,0.76653785,96661.0,96660.0,0.00013483]
[1735826010214,0.76253785,96661.0,96660.0,0.00013483]
[1735826010642,0.76553785,96661.0,96660.0,0.00013483]
[1735826011293,0.75753785,96661.0,96660.0,0.00013483]
[1735826011703,0.76053785,96661.0,96660.0,0.00013483]
[1735826011914,0.93182417,96661.0,96660.0,8.3e-07]
[1735826012128,0.74011092,96650.0,96649.0,8e-07]
[1735826012337,0.9556574,96650.0,96649.0,0.00014919]
[1735826012837,0.87974406,96650.0,96649.0,0.00014919]
[1735826012925,0.98000818,96650.0,96649.0,0.00014919]
[1735826013416,0.98900818,96650.0,96649.0,0.00014919]
[1735826013910,0.98910229,96650.0,96649.0,0.00014919]
[1735826014596,0.99310229,96650.0,96649.0,0.00014919]
[1735826014843,0.98410229,96650.0,96649.0,0.00014919]
[1735826015559,0.99310229,96650.0,96649.0,0.00014919]
[1735826016056,1.03860229,96650.0,96649.0,1.9e-07]
[1735826017867,0.74013892,96637.0,96636.0,9.9e-07]
[1735826018120,0.86712524,96637.0,96636.0,9.9e-07]
[1735826018346,1.02597264,96637.0,96636.0,9.9e-07]
[1735826019285,1.02597264,96637.0,96602.0,8.55e-05]
[1735826019286,0.64018592,96615.0,96602.0,8.55e-05]
[1735826019539,0.82177224,96615.0,96614.0,0.0002179]
[1735826019799,0.65101458,96615.0,96614.0,0.0002179]
[1735826020041,0.66540602,96615.0,96614.0,0.0002179]
[1735826020269,0.5614197,96615.0,96614.0,0.0002179]
[1735826020762,0.54802826,96615.0,96614.0,0.0002179]
[1735826021463,0.5624197,96615.0,96614.0,0.0002179]
[1735826021976,0.5674197,96615.0,96614.0,0.0002179]
[1735826023068,0.65701458,96615.0,96614.0,0.0003034]
[1735826023641,0.67140602,96615.0,96614.0,0.0003034]
[1735826024255,0.11284234,96615.0,96614.0,0.0003034]
[1735826024692,0.31984934,96615.0,96614.0,0.0003034]
[1735826024902,0.11284234,96615.0,96614.0,0.0003034]
[1735826025511,0.10684234,96615.0,96614.0,0.0003034]
[1735826026485,0.10784234,96615.0,96614.0,0.0003034]
[1735826026808,0.19102126,96615.0,96614.0,0.0003034]
[1735826027203,0.50550991,96615.0,96614.0,0.0003034]
[1735826027407,0.53389396,96615.0,96614.0,0.0003034]
[1735826027657,0.52260758,96615.0,96614.0,0.0003034]
[1735826028027,0.52360758,96615.0,96614.0,0.0003034]
[1735826028234,0.52260758,96615.0,96614.0,0.0003034]
[1735826028643,0.53389989,96615.0,96614.0,0.0003034]
[1735826029059,0.44600758,96615.0,96614.0,0.0003034]
[1735826029585,0.34202126,96615.0,96614.0,0.0003034]
[1735826030202,0.10884234,96615.0,96614.0,0.0003034]
[1735826031569,0.31584934,96615.0,96614.0,0.0003034]
[1735826033913,0.10884234,96615.0,96614.0,0.0003034]
[1735826036436,0.31584934,96615.0,96614.0,0.0003034]
[1735826037576,0.10884234,96615.0,96614.0,0.0003034]
[1735826040259,0.10884234,96615.0,96614.0,0.02103574]
[1735826040460,0.10884234,96615.0,96614.0,0.0003034]
[1735826042239,0.19202126,96615.0,96614.0,0.0003034]
[1735826047487,0.19002126,96615.0,96614.0,0.0003034]
[1735826047687,0.19102126,96615.0,96614.0,0.0003034]
[1735826053914,0.10784234,96615.0,96614.0,0.0003034]
[1735826054315,0.19102126,96615.0,96614.0,0.0003034]
[1735826056873,0.31484934,96615.0,96614.0,0.0003034]
[1735826057030,0.39802826,96615.0,96614.0,0.0003034]
[1735826057634,0.73271458,96615.0,96614.0,0.0003034]
[1735826058449,0.73171458,96615.0,96614.0,0.0003034]
[1735826059023,0.73371458,96615.0,96614.0,0.0003034]
[1735826060051,1.0367653,96615.0,96614.0,0.0003034]